[Event "41st Nezhmetdinov Memorial 2019"]
[Site "Kazan"]
[Date "2019.06.02"]
[Round "3.7"]
[White "Yatzenko, Anton"]
[Black "Maiorov, Nikita"]
[Result "1-0"]
[ECO "B08"]
[WhiteElo "2354"]
[BlackElo "2527"]
[Annotator "ChessBase"]
[PlyCount "148"]
[EventDate "2019.05.31"]
[EventType "swiss"]
[EventCountry "RUS"]
[SourceTitle "playchess.com"]
[Source "ChessBase"]
[SourceQuality "1"]
[TimeControl "5400+30"]

1. e4 {[%emt 0:04:34]} d6 {[%emt 0:03:51]} 2. d4 {[%emt 0:00:08]} Nf6 {[%emt 0:00:09]} 3. Nc3 {[%emt 0:01:56]} g6 {[%emt 0:00:05]} 4. Nf3 {[%emt 0:02:32]} Bg7 {[%emt 0:00:07]} 5. Be2 {[%emt 0:00:15]} O-O {[%emt 0:00:06]} 6. O-O {[%emt 0:00:04]} a6 {[%emt 0:00:13]} 7. a4 {[%emt 0:00:08]} b6 {[%emt 0:01:13]} 8. Re1 {[%emt 0:01:25]} Bb7 {[%emt 0:00:58]} 9. Bf1 {[%emt 0:00:07]} e6 {[%emt 0:00:47]} 10. h3 {[%emt 0:06:22]} Nc6 {[%emt 0:05:15]} 11. Bg5 {[%emt 0:02:04]} h6 {[%emt 0:00:53]} 12. Bh4 {[%emt 0:04:23]} Ne7 {[%emt 0:13:21]} 13. Qd2 {[%emt 0:00:48]} Kh7 {[%emt 0:02:28]} 14. Rad1 {[%emt 0:03:45]} Qe8 {[%emt 0:04:21]} 15. Bd3 {[%emt 0:02:22]} Nh5 {[%emt 0:07:12]} 16. g4 {[%emt 0:01:16]} Nf6 {[%emt 0:00:06]} 17. Bg3 {[%emt 0:01:03]} Nd7 {[%emt 0:06:22]} 18. Ne2 {[%emt 0:13:38]} f5 {[%emt 0:16:23]} 19. gxf5 {[%emt 0:04:44]} exf5 {[%emt 0:00:10]} 20. Nf4 {[%emt 0:00:40]} fxe4 {[%emt 0:00:27]} 21. Bxe4 {[%emt 0:01:07]} Bxe4 {[%emt 0:00:04]} 22. Rxe4 {[%emt 0:00:05]} Nf6 {[%emt 0:01:19]} 23. Re2 {[%emt 0:02:08]} Qd7 {[%emt 0:00:55]} 24. Rde1 {[%emt 0:06:23]} Nfd5 {[%emt 0:11:50]} 25. c4 {[%emt 0:13:46]} Nxf4 {[%emt 0:00:10]} 26. Rxe7 {[%emt 0:00:06]} Nxh3+ {[%emt 0:03:40]} 27. Kg2 {[%emt 0:01:55]} Qg4 {[%emt 0:03:04]} 28. Nh2 {[%emt 0:01:25]} Qf5 {[%emt 0:04:36]} 29. Rxc7 {[%emt 0:04:37]} Rac8 {[%emt 0:00:36]} 30. Ree7 {[%emt 0:04:05]} Rxc7 {[%emt 0:00:19]} 31. Rxc7 {[%emt 0:00:02]} Ng5 {[%emt 0:01:46]} 32. Qe2 {[%emt 0:00:28]} Ne6 {[%emt 0:04:00]} 33. Rb7 {[%emt 0:03:53]} Nxd4 {[%emt 0:04:00]} 34. Qg4 {[%emt 0:00:05]} Qd3 {[%emt 0:03:49]} 35. Bxd6 {[%emt 0:00:55]} Rf5 {[%emt 0:00:54]} 36. Bg3 {[%emt 0:01:36]} Qxc4 {[%emt 0:00:49]} 37. Qe4 {[%emt 0:00:46]} Qc5 {[%emt 0:01:09]} 38. Ng4 {[%emt 0:00:41]} Qc6 {[%emt 0:00:49]} 39. Qxc6 {[%emt 0:00:45]} Nxc6 {[%emt 0:00:01]} 40. Rxb6 {[%emt 0:01:39]} Ne7 {[%emt 0:00:47]} 41. Rxa6 {[%emt 0:02:09]} Bxb2 {[%emt 0:00:11]} 42. Ra7 {[%emt 0:00:06]} Ba3 {[%emt 0:00:05]} 43. Ne3 {[%emt 0:00:13]} Rg5 {[%emt 0:00:41]} 44. Kf3 {[%emt 0:02:16]} Bc5 {[%emt 0:00:46]} 45. Rc7 {[%emt 0:00:10]} Kg8 {[%emt 0:00:15]} 46. Bf4 {[%emt 0:01:08]} Rh5 {[%emt 0:00:07]} 47. Ng4 {[%emt 0:00:11]} Kf8 {[%emt 0:01:00]} 48. Nf6 {[%emt 0:05:56]} Rf5 {[%emt 0:00:06]} 49. Nd7+ {[%emt 0:00:03]} Ke8 {[%emt 0:00:24]} 50. Nxc5 {[%emt 0:00:20]} Rxf4+ {[%emt 0:01:26]} 51. Kxf4 {[%emt 0:00:03]} Nd5+ {[%emt 0:00:05]} 52. Ke5 {[%emt 0:00:03]} Nxc7 {[%emt 0:00:03]} 53. Kf6 {[%emt 0:00:05]} g5 {[%emt 0:01:34]} 54. Kg6 {[%emt 0:00:54]} Ke7 {[%emt 0:00:33]} 55. Kxh6 {[%emt 0:00:04]} Kf6 {[%emt 0:00:33]} 56. Ne4+ {[%emt 0:00:20]} Kf5 {[%emt 0:00:04]} 57. Nxg5 {[%emt 0:00:04]} Kf4 {[%emt 0:00:03]} 58. a5 {[%emt 0:01:05]} Na6 {[%emt 0:00:06]} 59. Kg6 {[%emt 0:00:23]} Nb4 {[%emt 0:01:15]} 60. Kf6 {[%emt 0:01:29]} Kg4 {[%emt 0:00:30]} 61. Kg6 {[%emt 0:01:30]} Kf4 {[%emt 0:00:07]} 62. Kh5 {[%emt 0:00:15]} Na6 {[%emt 0:00:23]} 63. Nh3+ {[%emt 0:00:20]} Kf3 {[%emt 0:00:11]} 64. Kg5 {[%emt 0:00:04]} Nb4 {[%emt 0:01:26]} 65. Kf5 {[%emt 0:00:07]} Na6 {[%emt 0:00:24]} 66. Ke5 {[%emt 0:00:12]} Nb4 {[%emt 0:00:54]} 67. Kd6 {[%emt 0:00:16]} Na6 {[%emt 0:00:27]} 68. Kc6 {[%emt 0:00:13]} Kg2 {[%emt 0:00:33]} 69. f4 {[%emt 0:00:05]} Kxh3 {[%emt 0:00:08]} 70. f5 {[%emt 0:00:10]} Nb4+ {[%emt 0:00:15]} 71. Kb7 {[%emt 0:00:13]} Nd3 {[%emt 0:01:14]} 72. f6 {[%emt 0:00:11]} Kg4 {[%emt 0:00:18]} 73. f7 {[%emt 0:00:40]} Nc5+ {[%emt 0:00:03]} 74. Kc8 {[%emt 0:00:14]} Ne6 {[%emt 0:00:04]} 1-0

[Event "41st Nezhmetdinov Memorial 2019"]
[Site "Kazan"]
[Date "2019.06.02"]
[Round "3.8"]
[White "Yudin, Sergei"]
[Black "Smirnov, Timofey"]
[Result "1/2-1/2"]
[ECO "B52"]
[WhiteElo "2507"]
[BlackElo "2335"]
[Annotator "ChessBase"]
[PlyCount "95"]
[EventDate "2019.05.31"]
[EventType "swiss"]
[EventCountry "RUS"]
[SourceTitle "playchess.com"]
[Source "ChessBase"]
[SourceQuality "1"]
[TimeControl "5400+30"]

1. e4 {[%emt 0:00:00]} c5 {[%emt 0:03:18]} 2. Nf3 {[%emt 0:00:00]} d6 {[%emt 0:00:06]} 3. Bb5+ {[%emt 0:00:11]} Bd7 {[%emt 0:00:07]} 4. a4 {[%emt 0:01:35]} Nc6 {[%emt 0:02:40]} 5. O-O {[%emt 0:00:41]} a6 {[%emt 0:00:56]} 6. Bxc6 {[%emt 0:05:45]} Bxc6 {[%emt 0:00:07]} 7. Re1 {[%emt 0:00:14]} e6 {[%emt 0:01:36]} 8. d4 {[%emt 0:02:39]} cxd4 {[%emt 0:00:20]} 9. Nxd4 {[%emt 0:00:05]} Nf6 {[%emt 0:01:09]} 10. Nd2 {[%emt 0:06:03]} Qc7 {[%emt 0:05:47]} 11. c4 {[%emt 0:02:38]} Be7 {[%emt 0:00:48]} 12. b3 {[%emt 0:00:46]} O-O {[%emt 0:01:10]} 13. Bb2 {[%emt 0:02:10]} b6 {[%emt 0:03:29]} 14. Nxc6 {[%emt 0:05:06]} Qxc6 {[%emt 0:00:06]} 15. Qe2 {[%emt 0:06:29]} Nd7 {[%emt 0:06:10]} 16. Nf3 {[%emt 0:02:11]} Qc7 {[%emt 0:01:27]} 17. Red1 {[%emt 0:01:14]} Rfd8 {[%emt 0:04:38]} 18. Qe3 {[%emt 0:08:07]} Rac8 {[%emt 0:01:50]} 19. Rd2 {[%emt 0:01:00]} Qb7 {[%emt 0:02:56]} 20. Rad1 {[%emt 0:01:05]} Nc5 {[%emt 0:02:29]} 21. e5 {[%emt 0:04:24]} dxe5 {[%emt 0:05:36]} 22. Nxe5 {[%emt 0:00:56]} Rxd2 {[%emt 0:04:18]} 23. Rxd2 {[%emt 0:00:05]} Rd8 {[%emt 0:01:52]} 24. Rxd8+ {[%emt 0:02:02]} Bxd8 {[%emt 0:00:03]} 25. a5 {[%emt 0:05:44]} f6 {[%emt 0:05:38]} 26. Nf3 {[%emt 0:06:01]} Qd7 {[%emt 0:03:59]} 27. axb6 {[%emt 0:06:16]} Bxb6 {[%emt 0:07:58]} 28. b4 {[%emt 0:04:35]} Nd3 {[%emt 0:06:26]} 29. c5 {[%emt 0:12:51]} Bxc5 {[%emt 0:06:47]} 30. bxc5 {[%emt 0:00:06]} Nxb2 {[%emt 0:00:01]} 31. Qc1 {[%emt 0:00:15]} Nd3 {[%emt 0:08:53]} 32. c6 {[%emt 0:00:35]} Qc8 {[%emt 0:01:14]} 33. Qd2 {[%emt 0:01:53]} Nc5 {[%emt 0:01:03]} 34. Nd4 {[%emt 0:02:00]} e5 {[%emt 0:03:06]} 35. Qa2+ {[%emt 0:00:06]} Kf8 {[%emt 0:00:09]} 36. Qa3 {[%emt 0:00:45]} exd4 {[%emt 0:00:06]} 37. Qxc5+ {[%emt 0:00:07]} Ke8 {[%emt 0:00:17]} 38. Qd5 {[%emt 0:04:21]} Ke7 {[%emt 0:05:04]} 39. Qc5+ {[%emt 0:00:26]} Ke8 {[%emt 0:02:38]} 40. Qd5 {[%emt 0:00:14]} Qc7 {[%emt 0:00:23]} 41. Qg8+ {[%emt 0:02:25]} Ke7 {[%emt 0:00:02]} 42. Qxg7+ {[%emt 0:00:08]} Kd6 {[%emt 0:00:02]} 43. Qxf6+ {[%emt 0:00:11]} Kd5 {[%emt 0:01:17]} 44. Qf3+ {[%emt 0:00:46]} Kc5 {[%emt 0:00:26]} 45. Qa3+ {[%emt 0:00:13]} Kb5 {[%emt 0:00:06]} 46. Qb2+ {[%emt 0:00:39]} Kc5 {[%emt 0:00:17]} 47. Qa3+ {[%emt 0:00:15]} Kb5 {[%emt 0:00:23]} 48. Qd3+ 1/2-1/2

[Event "41st Nezhmetdinov Memorial 2019"]
[Site "Kazan"]
[Date "2019.06.02"]
[Round "3.9"]
[White "Gubajdullin, Alexei"]
[Black "Nozdrachev, Vladislav"]
[Result "0-1"]
[ECO "A45"]
[WhiteElo "2347"]
[BlackElo "2481"]
[Annotator "ChessBase"]
[PlyCount "100"]
[EventDate "2019.05.31"]
[EventType "swiss"]
[EventCountry "RUS"]
[SourceTitle "playchess.com"]
[Source "ChessBase"]
[SourceQuality "1"]
[TimeControl "5400+30"]

1. d4 {[%emt 0:01:25]} Nf6 {[%emt 0:00:00]} 2. Bf4 {[%emt 0:00:04]} e6 {[%emt 0:00:00]} 3. e3 {[%emt 0:00:04]} b6 {[%emt 0:00:00]} 4. h3 {[%emt 0:00:29]} Bb7 {[%emt 0:00:00]} 5. Nf3 {[%emt 0:00:06]} Bd6 {[%emt 0:00:36]} 6. Bxd6 {[%emt 0:03:06]} cxd6 {[%emt 0:00:05]} 7. Nbd2 {[%emt 0:00:26]} O-O {[%emt 0:01:34]} 8. Bd3 {[%emt 0:00:15]} d5 {[%emt 0:00:10]} 9. O-O {[%emt 0:02:16]} d6 {[%emt 0:05:23]} 10. c3 {[%emt 0:03:35]} Nbd7 {[%emt 0:02:03]} 11. a4 {[%emt 0:02:04]} a6 {[%emt 0:00:29]} 12. Ne1 {[%emt 0:12:04]} Qe7 {[%emt 0:06:57]} 13. a5 {[%emt 0:11:05]} b5 {[%emt 0:01:21]} 14. Nc2 {[%emt 0:00:02]} Ne4 {[%emt 0:01:30]} 15. f3 {[%emt 0:03:14]} Ng3 {[%emt 0:00:39]} 16. Re1 {[%emt 0:00:02]} f5 {[%emt 0:05:16]} 17. Nb4 {[%emt 0:14:48]} e5 {[%emt 0:02:15]} 18. Bc2 {[%emt 0:03:13]} Kh8 {[%emt 0:09:59]} 19. Bb3 {[%emt 0:00:15]} Nf6 {[%emt 0:00:07]} 20. Kh2 {[%emt 0:01:03]} Ngh5 {[%emt 0:02:05]} 21. f4 {[%emt 0:07:11]} g6 {[%emt 0:04:19]} 22. Nf3 {[%emt 0:26:06]} e4 {[%emt 0:00:32]} 23. Nd2 {[%emt 0:00:39]} Rg8 {[%emt 0:06:03]} 24. g4 {[%emt 0:01:25]} fxg4 {[%emt 0:02:26]} 25. hxg4 {[%emt 0:00:15]} g5 {[%emt 0:00:12]} 26. f5 {[%emt 0:00:52]} Nf4 {[%emt 0:00:07]} 27. Rh1 {[%emt 0:02:38]} h5 {[%emt 0:02:52]} 28. Kg1 {[%emt 0:00:25]} Nd3 {[%emt 0:00:06]} 29. Nxd3 {[%emt 0:00:39]} exd3 {[%emt 0:00:04]} 30. Qf3 {[%emt 0:00:59]} Rae8 {[%emt 0:00:55]} 31. Nf1 {[%emt 0:01:16]} Qe4 {[%emt 0:04:18]} 32. Qxe4 {[%emt 0:00:50]} Rxe4 {[%emt 0:00:06]} 33. Bd1 {[%emt 0:00:15]} Re7 {[%emt 0:02:01]} 34. Ng3 {[%emt 0:01:46]} h4 {[%emt 0:01:40]} 35. Nf1 {[%emt 0:00:04]} Re4 {[%emt 0:01:27]} 36. Bf3 {[%emt 0:01:15]} Nxg4 {[%emt 0:00:06]} 37. Bxe4 {[%emt 0:00:44]} dxe4 {[%emt 0:00:05]} 38. b3 {[%emt 0:00:24]} Bd5 {[%emt 0:00:21]} 39. c4 {[%emt 0:00:55]} bxc4 {[%emt 0:00:09]} 40. bxc4 {[%emt 0:00:01]} Bxc4 {[%emt 0:00:05]} 41. Rb1 {[%emt 0:00:15]} Rf8 {[%emt 0:00:45]} 42. Nd2 {[%emt 0:01:04]} d5 {[%emt 0:00:04]} 43. Rh3 {[%emt 0:00:22]} Rxf5 {[%emt 0:01:14]} 44. Rf1 {[%emt 0:00:51]} Rxf1+ {[%emt 0:00:37]} 45. Kxf1 {[%emt 0:00:03]} Kg7 {[%emt 0:00:09]} 46. Ke1 {[%emt 0:00:12]} Kf7 {[%emt 0:01:02]} 47. Nxc4 {[%emt 0:00:42]} dxc4 {[%emt 0:00:04]} 48. Kd2 {[%emt 0:01:29]} Nf6 {[%emt 0:00:06]} 49. Rh1 {[%emt 0:00:36]} Nd5 {[%emt 0:00:06]} 50. Rf1+ {[%emt 0:00:10]} Ke6 {[%emt 0:00:04]} 0-1

[Event "41st Nezhmetdinov Memorial 2019"]
[Site "Kazan"]
[Date "2019.06.02"]
[Round "3.10"]
[White "Belyakov, Bogdan"]
[Black "Ponfilenok, Vladimir"]
[Result "1-0"]
[ECO "C15"]
[WhiteElo "2483"]
[BlackElo "2346"]
[Annotator "ChessBase"]
[PlyCount "101"]
[EventDate "2019.05.31"]
[EventType "swiss"]
[EventCountry "RUS"]
[SourceTitle "playchess.com"]
[Source "ChessBase"]
[SourceQuality "1"]
[TimeControl "5400+30"]

1. e4 {[%emt 0:00:00]} e6 {[%emt 0:05:49]} 2. d4 {[%emt 0:01:00]} d5 {[%emt 0:00:04]} 3. Nc3 {[%emt 0:00:06]} Bb4 {[%emt 0:00:03]} 4. Nge2 {[%emt 0:02:06]} dxe4 {[%emt 0:00:12]} 5. a3 {[%emt 0:00:06]} Bxc3+ {[%emt 0:00:05]} 6. Nxc3 {[%emt 0:00:05]} Nc6 {[%emt 0:00:06]} 7. d5 {[%emt 0:00:49]} exd5 {[%emt 0:00:06]} 8. Qxd5 {[%emt 0:00:03]} Be6 {[%emt 0:00:10]} 9. Qxe4 {[%emt 0:00:05]} Nf6 {[%emt 0:00:09]} 10. Qh4 {[%emt 0:00:05]} Qe7 {[%emt 0:01:18]} 11. Be3 {[%emt 0:06:47]} O-O-O {[%emt 0:00:11]} 12. Be2 {[%emt 0:13:40]} Nd5 {[%emt 0:03:34]} 13. Qxe7 {[%emt 0:00:15]} Ndxe7 {[%emt 0:00:06]} 14. O-O {[%emt 0:28:01]} Nf5 {[%emt 0:00:32]} 15. Bf4 {[%emt 0:01:15]} Nfd4 {[%emt 0:00:24]} 16. Bd3 {[%emt 0:04:32]} Bf5 {[%emt 0:00:15]} 17. Bxf5+ {[%emt 0:00:04]} Nxf5 {[%emt 0:00:07]} 18. Rfd1 {[%emt 0:01:09]} Nfd4 {[%emt 0:03:50]} 19. Rac1 {[%emt 0:02:40]} Rd7 {[%emt 0:00:23]} 20. Kf1 {[%emt 0:00:07]} Rhd8 {[%emt 0:00:51]} 21. f3 {[%emt 0:01:54]} Ne6 {[%emt 0:08:46]} 22. Rxd7 {[%emt 0:00:21]} Rxd7 {[%emt 0:00:02]} 23. Be3 {[%emt 0:00:09]} Ncd4 {[%emt 0:01:07]} 24. Kf2 {[%emt 0:00:54]} Nf5 {[%emt 0:03:54]} 25. g4 {[%emt 0:05:40]} Nxe3 {[%emt 0:00:09]} 26. Kxe3 {[%emt 0:00:04]} c5 {[%emt 0:04:19]} 27. Ne4 {[%emt 0:03:39]} Kc7 {[%emt 0:00:21]} 28. h4 {[%emt 0:00:08]} Kc6 {[%emt 0:08:13]} 29. c4 {[%emt 0:03:37]} a5 {[%emt 0:07:50]} 30. h5 {[%emt 0:00:56]} Nd4 {[%emt 0:06:48]} 31. g5 {[%emt 0:02:31]} f5 {[%emt 0:05:04]} 32. Nc3 {[%emt 0:06:00]} Re7+ {[%emt 0:07:41]} 33. Kf2 {[%emt 0:01:08]} Re6 {[%emt 0:07:50]} 34. Rd1 {[%emt 0:01:22]} Kd7 {[%emt 0:09:22]} 35. Rd2 {[%emt 0:07:39]} Ke8 {[%emt 0:01:23]} 36. Nd5 {[%emt 0:00:51]} Kd7 {[%emt 0:05:07]} 37. b4 {[%emt 0:00:42]} axb4 {[%emt 0:00:13]} 38. axb4 {[%emt 0:00:04]} Kc6 {[%emt 0:01:20]} 39. b5+ {[%emt 0:00:57]} Kd6 {[%emt 0:00:03]} 40. Ra2 {[%emt 0:03:44]} Re8 {[%emt 0:00:02]} 41. Nf4 {[%emt 0:00:34]} Kc7 {[%emt 0:02:29]} 42. Ra1 {[%emt 0:00:34]} Kd6 {[%emt 0:01:25]} 43. h6 {[%emt 0:00:19]} g6 {[%emt 0:04:41]} 44. Ra7 {[%emt 0:01:29]} Rb8 {[%emt 0:00:36]} 45. Ra2 {[%emt 0:00:05]} Rh8 {[%emt 0:01:15]} 46. Ra1 {[%emt 0:02:58]} Re8 {[%emt 0:00:33]} 47. Ra3 {[%emt 0:00:11]} Ne6 {[%emt 0:02:58]} 48. Re3 {[%emt 0:00:36]} Re7 {[%emt 0:00:53]} 49. Nd5 {[%emt 0:00:21]} Rf7 {[%emt 0:00:07]} 50. f4 {[%emt 0:00:19]} Nf8 {[%emt 0:01:38]} 51. Re8 {Kxd5} 1-0

[Event "41st Nezhmetdinov Memorial 2019"]
[Site "Kazan"]
[Date "2019.06.03"]
[Round "4.4"]
[White "Nozdrachev, Vladislav"]
[Black "Yatzenko, Anton"]
[Result "1-0"]
[ECO "C55"]
[WhiteElo "2481"]
[BlackElo "2354"]
[Annotator "ChessBase"]
[PlyCount "115"]
[EventDate "2019.05.31"]
[EventType "swiss"]
[EventCountry "RUS"]
[SourceTitle "playchess.com"]
[Source "ChessBase"]
[SourceQuality "1"]
[TimeControl "5400+30"]

1. e4 {[%emt 0:00:00]} e5 {[%emt 0:00:00]} 2. Nf3 {[%emt 0:00:00]} Nc6 {[%emt 0:00:00]} 3. Bc4 {[%emt 0:00:00]} Nf6 {[%emt 0:00:00]} 4. d3 {[%emt 0:00:00]} Be7 {[%emt 0:00:02]} 5. O-O {[%emt 0:00:00]} O-O {[%emt 0:00:03]} 6. Re1 {[%emt 0:00:00]} d6 {[%emt 0:00:07]} 7. a4 {[%emt 0:00:00]} Na5 {[%emt 0:00:58]} 8. Ba2 {[%emt 0:00:08]} c5 {[%emt 0:00:03]} 9. Na3 {[%emt 0:04:18]} Nc6 {[%emt 0:04:06]} 10. c3 {[%emt 0:00:53]} h6 {[%emt 0:00:33]} 11. Nc4 {[%emt 0:09:17]} Be6 {[%emt 0:00:37]} 12. Ne3 {[%emt 0:00:46]} Bxa2 {[%emt 0:00:52]} 13. Rxa2 {[%emt 0:00:04]} d5 {[%emt 0:00:05]} 14. Qb3 {[%emt 0:14:21]} Na5 {[%emt 0:08:50]} 15. Qc2 {[%emt 0:00:29]} Nc6 {[%emt 0:02:38]} 16. a5 {[%emt 0:06:46]} Re8 {[%emt 0:01:20]} 17. a6 {[%emt 0:11:14]} b6 {[%emt 0:01:08]} 18. Qb3 {[%emt 0:00:26]} d4 {[%emt 0:03:59]} 19. Nc4 {[%emt 0:00:50]} Bf8 {[%emt 0:01:24]} 20. Qa4 {[%emt 0:09:09]} Rc8 {[%emt 0:02:26]} 21. cxd4 {[%emt 0:01:04]} Nxd4 {[%emt 0:13:01]} 22. Ncxe5 {[%emt 0:00:51]} Nxf3+ {[%emt 0:00:28]} 23. Nxf3 {[%emt 0:00:05]} Qxd3 {[%emt 0:00:15]} 24. e5 {[%emt 0:02:00]} b5 {[%emt 0:01:29]} 25. Qh4 {[%emt 0:08:32]} Nd5 {[%emt 0:04:43]} 26. Qg4 {[%emt 0:00:06]} Re6 {[%emt 0:01:25]} 27. Bxh6 {[%emt 0:02:58]} Qb3 {[%emt 0:05:30]} 28. Raa1 {[%emt 0:00:50]} Qb4 {[%emt 0:00:51]} 29. Re4 {[%emt 0:03:55]} Qxb2 {[%emt 0:01:12]} 30. Rae1 {[%emt 0:00:21]} Nc3 {[%emt 0:03:34]} 31. R4e3 {[%emt 0:00:44]} Rd8 {[%emt 0:06:00]} 32. Bxg7 {[%emt 0:04:56]} Bxg7 {[%emt 0:03:31]} 33. Ng5 {[%emt 0:00:11]} Rg6 {[%emt 0:04:12]} 34. e6 {[%emt 0:01:45]} fxe6 {[%emt 0:06:44]} 35. Qh5 {[%emt 0:00:14]} Rxg5 {[%emt 0:01:05]} 36. Qxg5 {[%emt 0:00:05]} Rf8 {[%emt 0:05:01]} 37. Qg3 {[%emt 0:00:08]} Nd5 {[%emt 0:01:17]} 38. Rxe6 {[%emt 0:01:07]} c4 {[%emt 0:02:34]} 39. R6e5 {[%emt 0:02:57]} Qd4 {[%emt 0:02:27]} 40. h4 {[%emt 0:01:23]} c3 {[%emt 0:02:08]} 41. h5 {[%emt 0:02:00]} Kh8 {[%emt 0:01:30]} 42. R5e4 {[%emt 0:02:32]} Qd2 {[%emt 0:00:49]} 43. Re8 {[%emt 0:01:43]} Qf4 {[%emt 0:01:27]} 44. Rxf8+ {[%emt 0:00:29]} Bxf8 {[%emt 0:00:25]} 45. Qg6 {[%emt 0:00:21]} Qf6 {[%emt 0:02:14]} 46. Qd3 {[%emt 0:00:51]} Nf4 {[%emt 0:02:22]} 47. Qxb5 {[%emt 0:00:38]} c2 {[%emt 0:01:49]} 48. Qc4 {[%emt 0:00:14]} Qg5 {[%emt 0:02:29]} 49. g3 {[%emt 0:00:24]} Nh3+ {[%emt 0:03:23]} 50. Kg2 {[%emt 0:00:36]} Qd2 {[%emt 0:00:03]} 51. Re8 {[%emt 0:00:49]} Qd6 {[%emt 0:01:47]} 52. Qf7 {[%emt 0:02:28]} Nf4+ {[%emt 0:00:27]} 53. gxf4 {[%emt 0:00:05]} Qc6+ {[%emt 0:00:16]} 54. f3 {[%emt 0:00:08]} Qxe8 {[%emt 0:00:13]} 55. Qxe8 {[%emt 0:00:04]} c1=Q {[%emt 0:00:04]} 56. Qxf8+ {[%emt 0:00:03]} Kh7 {[%emt 0:00:03]} 57. Qf7+ {[%emt 0:00:30]} Kh8 {[%emt 0:00:01]} 58. Qxa7 {[%emt 0:00:10]} 1-0

[Event "41st Nezhmetdinov Memorial 2019"]
[Site "Kazan"]
[Date "2019.06.04"]
[Round "5.3"]
[White "Frolyanov, Dmitry"]
[Black "Belyakov, Bogdan"]
[Result "1/2-1/2"]
[ECO "C23"]
[WhiteElo "2538"]
[BlackElo "2483"]
[Annotator "RC"]
[PlyCount "80"]
[EventDate "2019.05.31"]
[EventType "swiss"]
[EventCountry "RUS"]
[SourceTitle "playchess.com"]
[Source "ChessBase"]
[SourceQuality "1"]
[TimeControl "5400+30"]

1. e4 {[%emt 0:00:00]} e5 {[%emt 0:00:00]} 2. Bc4 {[%emt 0:00:00]} Nc6 {[%emt 0:00:00]} 3. d3 {[%emt 0:00:00]} Nf6 {[%emt 0:01:19]} 4. Nc3 {[%emt 0:00:01]} Na5 {[%emt 0:00:12]} 5. Nge2 {[%emt 0:00:07]} Bc5 {[%emt 0:01:03]} 6. h3 {[%emt 0:11:27]} Nxc4 {[%emt 0:06:35]} 7. dxc4 {[%emt 0:00:06]} d6 {[%emt 0:00:13]} 8. Qd3 {[%emt 0:01:25]} Be6 {[%emt 0:01:09]} 9. b3 {[%emt 0:00:29]} Nd7 {[%emt 0:01:14]} 10. Be3 {[%emt 0:04:11]} a6 {[%emt 0:05:00]} 11. O-O {[%emt 0:01:17]} O-O {[%emt 0:01:59]} 12. Na4 {[%emt 0:07:03]} Bxe3 {[%emt 0:02:35]} 13. Qxe3 {[%emt 0:00:07]} b6 {[%emt 0:02:42]} 14. Nac3 {[%emt 0:02:39]} a5 {[%emt 0:03:17]} 15. a4 {[%emt 0:00:25]} Nc5 {[%emt 0:01:44]} 16. Rad1 {[%emt 0:02:18]} Qe7 {[%emt 0:09:14]} 17. Nd5 {[%emt 0:05:26]} Bxd5 {[%emt 0:00:52]} 18. cxd5 {[%emt 0:00:25]} Rae8 {[%emt 0:12:23]} 19. Ng3 {[%emt 0:04:49]} g6 {[%emt 0:00:51]} 20. Rde1 {[%emt 0:00:26]} Qh4 {[%emt 0:05:32]} 21. Qf3 {[%emt 0:12:05]} Qf4 {[%emt 0:05:13]} 22. Re3 {[%emt 0:00:23]} Qxf3 {[%emt 0:01:39]} 23. Rxf3 {[%emt 0:00:06]} h5 {[%emt 0:03:43]} 24. h4 {[%emt 0:00:45]} Kg7 {[%emt 0:00:37]} 25. Re1 {[%emt 0:00:13]} Rb8 {[%emt 0:02:00]} 26. Rfe3 {[%emt 0:03:09]} Kf6 {[%emt 0:00:34]} 27. Ne2 {[%emt 0:00:47]} Ke7 {[%emt 0:05:19]} 28. Nc3 {[%emt 0:02:54]} Kd7 {[%emt 0:00:15]} 29. g3 {[%emt 0:02:22]} f5 {[%emt 0:02:58]} 30. exf5 {[%emt 0:00:07]} gxf5 {[%emt 0:00:06]} 31. f4 {[%emt 0:01:24]} e4 {[%emt 0:00:53]} 32. Nb5 {[%emt 0:05:48]} Rbc8 {[%emt 0:01:04]} 33. Rd1 {[%emt 0:02:34]} Ke7 {[%emt 0:06:59]} 34. Kf2 {[%emt 0:00:19]} Kf6 {[%emt 0:00:10]} 35. Rd4 {[%emt 0:02:58]} Ke7 {[%emt 0:02:08]} 36. Rd1 {[%emt 0:00:19]} Kf6 {[%emt 0:00:06]} 37. Rd4 {[%emt 0:00:05]} Ke7 {[%emt 0:00:05]} 38. Rd1 {[%emt 0:00:05]} Kf6 {[%emt 0:00:15]} 39. Rd4 {[%emt 0:00:03]} Ke7 {[%emt 0:00:02]} 40. Rd1 {[%emt 0:00:07]} Kf6 1/2-1/2

[Event "41st Nezhmetdinov Memorial 2019"]
[Site "Kazan"]
[Date "2019.06.04"]
[Round "5.4"]
[White "Yeletsky, Ivan"]
[Black "Iljiushenok, Ilia"]
[Result "1-0"]
[ECO "B23"]
[WhiteElo "2438"]
[BlackElo "2549"]
[Annotator "RC"]
[PlyCount "67"]
[EventDate "2019.05.31"]
[EventType "swiss"]
[EventCountry "RUS"]
[SourceTitle "playchess.com"]
[Source "ChessBase"]
[SourceQuality "1"]
[TimeControl "5400+30"]

1. e4 {[%emt 0:00:47]} c5 {[%emt 0:03:48]} 2. Nc3 {[%emt 0:00:42]} a6 {[%emt 0:03:07]} 3. Nge2 {[%emt 0:01:02]} e6 {[%emt 0:01:46]} 4. g3 {[%emt 0:01:49]} b5 {[%emt 0:02:52]} 5. d4 {[%emt 0:02:57]} cxd4 {[%emt 0:00:51]} 6. Nxd4 {[%emt 0:00:12]} Bb7 {[%emt 0:01:32]} 7. Bg2 {[%emt 0:01:21]} b4 {[%emt 0:15:02]} 8. Na4 {[%emt 0:03:21]} Nf6 {[%emt 0:01:26]} 9. c4 {[%emt 0:05:47]} Bxe4 {[%emt 0:08:06]} 10. Bxe4 {[%emt 0:00:14]} Nxe4 {[%emt 0:00:02]} 11. Qf3 {[%emt 0:13:20]} f5 {[%emt 0:03:14]} 12. g4 {[%emt 0:07:46]} Qf6 {[%emt 0:06:20]} 13. Be3 {[%emt 0:00:46]} g6 {[%emt 0:03:25]} 14. O-O-O {[%emt 0:02:44]} Bg7 {[%emt 0:13:05]} 15. gxf5 {[%emt 0:03:11]} gxf5 {[%emt 0:00:27]} 16. Rhg1 {[%emt 0:04:04]} O-O {[%emt 0:00:44]} 17. Ne2 {[%emt 0:07:17]} Nc6 {[%emt 0:10:15]} 18. Nf4 {[%emt 0:12:53]} Ne5 {[%emt 0:02:24]} 19. Qe2 {[%emt 0:02:22]} Qh4 {[%emt 0:09:43]} 20. Nh5 {[%emt 0:03:43]} Ng6 {[%emt 0:00:18]} 21. Nxg7 {[%emt 0:06:02]} Kxg7 {[%emt 0:00:01]} 22. Nb6 {[%emt 0:03:39]} Rad8 {[%emt 0:00:13]} 23. f3 {[%emt 0:01:16]} Qh5 {[%emt 0:05:09]} 24. Nxd7 {[%emt 0:01:54]} Rfe8 {[%emt 0:01:37]} 25. Qf1 {[%emt 0:07:18]} Re7 {[%emt 0:00:37]} 26. Ne5 {[%emt 0:00:37]} Rxd1+ {[%emt 0:01:30]} 27. Qxd1 {[%emt 0:00:08]} Nf6 {[%emt 0:03:06]} 28. Qd6 {[%emt 0:01:10]} Ng8 {[%emt 0:00:16]} 29. Bd4 {[%emt 0:02:00]} Qh6+ {[%emt 0:02:19]} 30. Kb1 {[%emt 0:00:12]} Kf8 {[%emt 0:00:06]} 31. Qd8+ {[%emt 0:01:05]} Re8 {[%emt 0:00:07]} 32. Qd6+ {[%emt 0:01:15]} Re7 {[%emt 0:00:15]} 33. Bc5 {[%emt 0:00:46]} Kg7 {[%emt 0:01:00]} 34. Qd4 {[%emt 0:00:33]} 1-0